[Event "Titled Tuesday Blitz March 29 Early 2022"]
[White "Smietanska, Wiktoria"]
[Black "Manukyan, Sargis A."]
[WhiteFideId "21869359"]
[BlackFideId "13303970"]
[WhiteElo "1893"]
[BlackElo "2187"]
[Result "1-0"]
[Round "01"]
[TimeControl "180+1"]
[Date "2022.03.30"]
[WhiteClock "0:00:58"]
[BlackClock "0:00:53"]

1. c4 {[%clk 0:03:00]}  Nf6 {[%clk 0:02:56]} 2. Nc3 {[%clk 0:02:59]}  e6 {[%clk 0:02:57]} 3. e4 {[%clk 0:02:57]}  c5 {[%clk 0:02:57]} 4. e5 {[%clk 0:02:55]}  Ng8 {[%clk 0:02:56]} 5. Nf3 {[%clk 0:02:55]}  Nc6 {[%clk 0:02:57]} 6. d4 {[%clk 0:02:55]}  cxd4 {[%clk 0:02:56]} 7. Nxd4 {[%clk 0:02:55]}  Nxd4 {[%clk 0:02:57]} 8. Qxd4 {[%clk 0:02:55]}  Ne7 {[%clk 0:02:58]} 9. f4 {[%clk 0:02:54]}  Nc6 {[%clk 0:02:58]} 10. Qd2 {[%clk 0:02:44]}  d6 {[%clk 0:02:58]} 11. exd6 {[%clk 0:02:42]}  Bxd6 {[%clk 0:02:59]} 12. Be2 {[%clk 0:02:41]}  O-O {[%clk 0:02:57]} 13. O-O {[%clk 0:02:40]}  Bc5+ {[%clk 0:02:57]} 14. Kh1 {[%clk 0:02:39]}  Qxd2 {[%clk 0:02:50]} 15. Bxd2 {[%clk 0:02:40]}  Rd8 {[%clk 0:02:51]} 16. Rad1 {[%clk 0:02:39]}  a6 {[%clk 0:02:48]} 17. Ne4 {[%clk 0:02:37]}  Be7 {[%clk 0:02:46]} 18. Bc3 {[%clk 0:02:36]}  Bd7 {[%clk 0:02:44]} 19. Rd2 {[%clk 0:02:34]}  Be8 {[%clk 0:02:42]} 20. Rfd1 {[%clk 0:02:31]}  Rxd2 {[%clk 0:02:42]} 21. Rxd2 {[%clk 0:02:32]}  Rd8 {[%clk 0:02:42]} 22. Rxd8 {[%clk 0:02:28]}  Nxd8 {[%clk 0:02:43]} 23. b4 {[%clk 0:02:28]}  Bc6 {[%clk 0:02:39]} 24. Bd3 {[%clk 0:02:26]}  h6 {[%clk 0:02:37]} 25. Bd4 {[%clk 0:02:17]}  Bxb4 {[%clk 0:02:22]} 26. Nc5 {[%clk 0:02:11]}  Bxc5 {[%clk 0:02:10]} 27. Bxc5 {[%clk 0:02:12]}  Bd7 {[%clk 0:02:11]} 28. Be4 {[%clk 0:02:09]}  Nc6 {[%clk 0:02:12]} 29. Kg1 {[%clk 0:02:08]}  f6 {[%clk 0:02:08]} 30. Kf2 {[%clk 0:02:08]}  Kf7 {[%clk 0:02:07]} 31. Ke3 {[%clk 0:02:07]}  g5 {[%clk 0:02:00]} 32. g3 {[%clk 0:02:06]}  f5 {[%clk 0:01:57]} 33. Bf3 {[%clk 0:02:00]}  Na5 {[%clk 0:01:54]} 34. Kd4 {[%clk 0:01:55]}  Bc6 {[%clk 0:01:52]} 35. Bh5+ {[%clk 0:01:50]}  Kf6 {[%clk 0:01:49]} 36. Bb6 {[%clk 0:01:49]}  Nxc4 {[%clk 0:01:45]} 37. Kxc4 {[%clk 0:01:49]}  Bd5+ {[%clk 0:01:46]} 38. Kd4 {[%clk 0:01:49]}  Bxa2 {[%clk 0:01:47]} 39. Bd8+ {[%clk 0:01:48]}  Kg7 {[%clk 0:01:47]} 40. fxg5 {[%clk 0:01:48]}  hxg5 {[%clk 0:01:46]} 41. Bxg5 {[%clk 0:01:48]}  Bd5 {[%clk 0:01:47]} 42. Be8 {[%clk 0:01:47]}  b5 {[%clk 0:01:43]} 43. Kc5 {[%clk 0:01:46]}  Bc4 {[%clk 0:01:41]} 44. Bc6 {[%clk 0:01:44]}  e5 {[%clk 0:01:40]} 45. Bb7 {[%clk 0:01:42]}  a5 {[%clk 0:01:34]} 46. Ba6 {[%clk 0:01:41]}  a4 {[%clk 0:01:28]} 47. Bxb5 {[%clk 0:01:30]}  Bxb5 {[%clk 0:01:28]} 48. Kxb5 {[%clk 0:01:31]}  a3 {[%clk 0:01:28]} 49. Bc1 {[%clk 0:01:32]}  Kg6 {[%clk 0:01:00]} 50. Bxa3 {[%clk 0:01:29]}  Kg5 {[%clk 0:01:01]} 51. Bd6 {[%clk 0:01:29]}  e4 {[%clk 0:00:58]} 52. h4+ {[%clk 0:01:25]}  Kg4 {[%clk 0:00:54]} 53. Bf4 {[%clk 0:01:04]}  Kf3 {[%clk 0:00:48]} 54. h5 {[%clk 0:01:02]}  e3 {[%clk 0:00:49]} 55. Bxe3 {[%clk 0:01:01]}  Kxe3 {[%clk 0:00:49]} 56. h6 {[%clk 0:01:01]}  Kf3 {[%clk 0:00:50]} 57. h7 {[%clk 0:01:02]}  Kxg3 {[%clk 0:00:50]} 58. h8=Q {[%clk 0:01:02]}  f4 {[%clk 0:00:51]} 59. Qg7+ {[%clk 0:01:02]}  Kf2 {[%clk 0:00:52]} 60. Kc4 {[%clk 0:01:01]}  f3 {[%clk 0:00:52]} 61. Kd3 {[%clk 0:01:00]}  Kf1 {[%clk 0:00:52]} 62. Ke3 {[%clk 0:00:58]}  f2 {[%clk 0:00:52]} 63. Qg3 {[%clk 0:00:57]}  Ke1 {[%clk 0:00:52]} 64. Qxf2+ {[%clk 0:00:58]}  Kd1 {[%clk 0:00:53]} 65. Qd2# {[%clk 0:00:58]} 1-0


[Site "https://www.chess.com"]

[Event "Titled Tuesday Blitz March 29 Early 2022"]
[White "Suarez Uriel, Adrian"]
[Black "Mogirzan, Matei-Valeriu"]
[WhiteFideId "22230874"]
[BlackFideId "1257455"]
[WhiteElo "2316"]
[BlackElo "1733"]
[Result "0-1"]
[Round "01"]
[TimeControl "180+1"]
[Date "2022.03.30"]
[WhiteClock "0:00:05"]
[BlackClock "0:00:07"]

1. e4 {[%clk 0:02:59]}  e5 {[%clk 0:02:58]} 2. Nf3 {[%clk 0:02:59]}  Nf6 {[%clk 0:02:51]} 3. d4 {[%clk 0:02:59]}  Nxe4 {[%clk 0:02:49]} 4. Bd3 {[%clk 0:02:57]}  d5 {[%clk 0:02:45]} 5. dxe5 {[%clk 0:02:57]}  Nc6 {[%clk 0:02:41]} 6. O-O {[%clk 0:02:56]}  Be6 {[%clk 0:02:39]} 7. Nbd2 {[%clk 0:02:42]}  Nxd2 {[%clk 0:02:33]} 8. Bxd2 {[%clk 0:02:41]}  Be7 {[%clk 0:02:34]} 9. Re1 {[%clk 0:02:36]}  Qd7 {[%clk 0:02:31]} 10. h4 {[%clk 0:02:35]}  O-O-O {[%clk 0:02:27]} 11. Qe2 {[%clk 0:02:34]}  Bg4 {[%clk 0:02:15]} 12. Qe3 {[%clk 0:02:31]}  Kb8 {[%clk 0:01:59]} 13. g3 {[%clk 0:02:00]}  h6 {[%clk 0:01:36]} 14. Bf1 {[%clk 0:01:45]}  g5 {[%clk 0:01:31]} 15. Bg2 {[%clk 0:01:37]}  Bh3 {[%clk 0:01:23]} 16. h5 {[%clk 0:01:24]}  Qg4 {[%clk 0:01:10]} 17. b4 {[%clk 0:01:16]}  d4 {[%clk 0:00:51]} 18. Qe4 {[%clk 0:01:12]}  Qxe4 {[%clk 0:00:49]} 19. Rxe4 {[%clk 0:01:11]}  Bf5 {[%clk 0:00:49]} 20. Ree1 {[%clk 0:01:06]}  Nxb4 {[%clk 0:00:37]} 21. Bxb4 {[%clk 0:00:59]}  Bxb4 {[%clk 0:00:36]} 22. Re2 {[%clk 0:00:55]}  Bc3 {[%clk 0:00:32]} 23. Rb1 {[%clk 0:00:55]}  b6 {[%clk 0:00:31]} 24. Ne1 {[%clk 0:00:52]}  Rhe8 {[%clk 0:00:26]} 25. Nd3 {[%clk 0:00:52]}  Bxd3 {[%clk 0:00:24]} 26. cxd3 {[%clk 0:00:52]}  Re7 {[%clk 0:00:19]} 27. f4 {[%clk 0:00:43]}  Rde8 {[%clk 0:00:14]} 28. Bc6 {[%clk 0:00:40]}  Rg8 {[%clk 0:00:13]} 29. f5 {[%clk 0:00:36]}  f6 {[%clk 0:00:13]} 30. e6 {[%clk 0:00:36]}  Rd8 {[%clk 0:00:08]} 31. a4 {[%clk 0:00:32]}  a5 {[%clk 0:00:08]} 32. Rb5 {[%clk 0:00:31]}  Rd6 {[%clk 0:00:07]} 33. Bg2 {[%clk 0:00:28]}  Bb4 {[%clk 0:00:05]} 34. Rc2 {[%clk 0:00:27]}  Ka7 {[%clk 0:00:05]} 35. Rd5 {[%clk 0:00:24]}  Rxd5 {[%clk 0:00:03]} 36. Bxd5 {[%clk 0:00:25]}  Bd6 {[%clk 0:00:03]} 37. Kg2 {[%clk 0:00:24]}  c5 {[%clk 0:00:03]} 38. g4 {[%clk 0:00:23]}  Be5 {[%clk 0:00:04]} 39. Kf3 {[%clk 0:00:24]}  Kb8 {[%clk 0:00:04]} 40. Ke4 {[%clk 0:00:22]}  Kc7 {[%clk 0:00:05]} 41. Rb2 {[%clk 0:00:22]}  Re8 {[%clk 0:00:05]} 42. Bc4 {[%clk 0:00:22]}  Re7 {[%clk 0:00:05]} 43. Bb5 {[%clk 0:00:22]}  Bd6 {[%clk 0:00:05]} 44. Kd5 {[%clk 0:00:22]}  Be5 {[%clk 0:00:05]} 45. Re2 {[%clk 0:00:22]}  Bd6 {[%clk 0:00:05]} 46. Re4 {[%clk 0:00:22]}  Bf4 {[%clk 0:00:04]} 47. Re2 {[%clk 0:00:17]}  Bd6 {[%clk 0:00:03]} 48. Re4 {[%clk 0:00:17]}  Bf4 {[%clk 0:00:03]} 49. Rxf4 {[%clk 0:00:18]}  gxf4 {[%clk 0:00:03]} 50. Ke4 {[%clk 0:00:18]}  Kd6 {[%clk 0:00:03]} 51. Kxf4 {[%clk 0:00:19]}  Rg7 {[%clk 0:00:02]} 52. Bc4 {[%clk 0:00:16]}  Rg5 {[%clk 0:00:03]} 53. Bb3 {[%clk 0:00:15]}  Rg7 {[%clk 0:00:03]} 54. Bd1 {[%clk 0:00:15]}  Rb7 {[%clk 0:00:03]} 55. Bf3 {[%clk 0:00:13]}  Rb8 {[%clk 0:00:03]} 56. g5 {[%clk 0:00:11]}  hxg5+ {[%clk 0:00:03]} 57. Kg4 {[%clk 0:00:11]}  b5 {[%clk 0:00:03]} 58. axb5 {[%clk 0:00:11]}  a4 {[%clk 0:00:03]} 59. h6 {[%clk 0:00:12]}  a3 {[%clk 0:00:03]} 60. h7 {[%clk 0:00:09]}  a2 {[%clk 0:00:04]} 61. e7 {[%clk 0:00:07]}  a1=Q {[%clk 0:00:04]} 62. Kh5 {[%clk 0:00:06]}  Qg1 {[%clk 0:00:03]} 63. Kg6 {[%clk 0:00:06]}  Qh2 {[%clk 0:00:03]} 64. Bh5 {[%clk 0:00:06]}  Rh8 {[%clk 0:00:04]} 65. Kg7 {[%clk 0:00:02]}  Rxh7+ {[%clk 0:00:04]} 66. Kxh7 {[%clk 0:00:02]}  Qxh5+ {[%clk 0:00:05]} 67. Kg7 {[%clk 0:00:03]}  Qe8 {[%clk 0:00:05]} 68. Kxf6 {[%clk 0:00:03]}  Qxe7+ {[%clk 0:00:06]} 69. Kg6 {[%clk 0:00:03]}  g4 {[%clk 0:00:05]} 70. f6 {[%clk 0:00:04]}  Qe6 {[%clk 0:00:05]} 71. Kg7 {[%clk 0:00:04]}  Qxf6+ {[%clk 0:00:05]} 72. Kxf6 {[%clk 0:00:04]}  g3 {[%clk 0:00:06]} 73. b6 {[%clk 0:00:04]}  Kc6 {[%clk 0:00:06]} 74. b7 {[%clk 0:00:04]}  Kxb7 {[%clk 0:00:06]} 75. Ke5 {[%clk 0:00:05]}  Kc6 {[%clk 0:00:07]} 0-1


[Site "https://www.chess.com"]

[Event "Titled Tuesday Blitz March 29 Early 2022"]
[White "Taboas Rodriguez, Daniel"]
[Black "Wu, Sibo"]
[WhiteFideId "2208466"]
[BlackFideId "8606048"]
[WhiteElo "2429"]
[BlackElo "2336"]
[Result "1-0"]
[Round "01"]
[TimeControl "180+1"]
[Date "2022.03.30"]
[WhiteClock "0:01:35"]
[BlackClock "0:00:25"]

1. d4 {[%clk 0:02:59]}  d5 {[%clk 0:02:59]} 2. Nf3 {[%clk 0:02:59]}  Nf6 {[%clk 0:02:59]} 3. c4 {[%clk 0:03:00]}  c6 {[%clk 0:02:59]} 4. cxd5 {[%clk 0:03:00]}  cxd5 {[%clk 0:02:59]} 5. Nc3 {[%clk 0:03:01]}  a6 {[%clk 0:02:54]} 6. Bf4 {[%clk 0:03:00]}  Nc6 {[%clk 0:02:54]} 7. Rc1 {[%clk 0:03:01]}  Bg4 {[%clk 0:02:51]} 8. Ne5 {[%clk 0:03:00]}  e6 {[%clk 0:02:44]} 9. Qa4 {[%clk 0:02:58]}  Rc8 {[%clk 0:02:14]} 10. e3 {[%clk 0:02:56]}  Qb6 {[%clk 0:01:45]} 11. Nxc6 {[%clk 0:02:53]}  Qxc6 {[%clk 0:01:36]} 12. Qxc6+ {[%clk 0:02:52]}  Rxc6 {[%clk 0:01:36]} 13. f3 {[%clk 0:02:51]}  Bf5 {[%clk 0:01:35]} 14. g4 {[%clk 0:02:50]}  Bg6 {[%clk 0:01:35]} 15. Kd2 {[%clk 0:02:46]}  Be7 {[%clk 0:01:30]} 16. h4 {[%clk 0:02:45]}  h5 {[%clk 0:01:29]} 17. g5 {[%clk 0:02:45]}  Nd7 {[%clk 0:01:29]} 18. Be2 {[%clk 0:02:41]}  O-O {[%clk 0:01:29]} 19. Na4 {[%clk 0:02:41]}  Rfc8 {[%clk 0:01:29]} 20. Rxc6 {[%clk 0:02:41]}  Rxc6 {[%clk 0:01:29]} 21. Rc1 {[%clk 0:02:41]}  Bb4+ {[%clk 0:01:29]} 22. Kd1 {[%clk 0:02:41]}  Rxc1+ {[%clk 0:01:27]} 23. Kxc1 {[%clk 0:02:42]}  Be1 {[%clk 0:01:27]} 24. Nc5 {[%clk 0:02:37]}  Nxc5 {[%clk 0:01:21]} 25. dxc5 {[%clk 0:02:38]}  Bxh4 {[%clk 0:01:22]} 26. Kd2 {[%clk 0:02:19]}  f6 {[%clk 0:01:13]} 27. gxf6 {[%clk 0:02:16]}  Bxf6 {[%clk 0:01:14]} 28. b4 {[%clk 0:02:14]}  e5 {[%clk 0:01:13]} 29. Bh2 {[%clk 0:02:14]}  Bf5 {[%clk 0:01:04]} 30. Bd1 {[%clk 0:02:09]}  Bd7 {[%clk 0:01:01]} 31. Bb3 {[%clk 0:02:08]}  Bc6 {[%clk 0:00:56]} 32. e4 {[%clk 0:02:08]}  Kf8 {[%clk 0:00:51]} 33. exd5 {[%clk 0:02:08]}  Bd7 {[%clk 0:00:51]} 34. Ke3 {[%clk 0:01:56]}  g5 {[%clk 0:00:41]} 35. Bc4 {[%clk 0:01:52]}  Bf5 {[%clk 0:00:36]} 36. d6 {[%clk 0:01:50]}  g4 {[%clk 0:00:35]} 37. fxg4 {[%clk 0:01:50]}  hxg4 {[%clk 0:00:35]} 38. Bd5 {[%clk 0:01:50]}  Bg5+ {[%clk 0:00:31]} 39. Ke2 {[%clk 0:01:48]}  Bf4 {[%clk 0:00:29]} 40. Bxf4 {[%clk 0:01:36]}  exf4 {[%clk 0:00:30]} 41. Bxb7 {[%clk 0:01:35]}  Ke8 {[%clk 0:00:25]} 1-0


[Site "https://www.chess.com"]

[Event "Titled Tuesday Blitz March 29 Early 2022"]
[White "Vakhlamov, Igor L."]
[Black "Pourkashiyan, Atousa"]
[WhiteFideId "24126748"]
[BlackFideId "12502014"]
[WhiteElo "2401"]
[BlackElo "2247"]
[Result "1-0"]
[Round "01"]
[TimeControl "180+1"]
[Date "2022.03.29"]
[WhiteClock "0:00:45"]
[BlackClock "0:00:13"]

1. e4 {[%clk 0:03:00]}  e5 {[%clk 0:02:58]} 2. Nf3 {[%clk 0:03:00]}  Nf6 {[%clk 0:02:56]} 3. Nc3 {[%clk 0:03:00]}  Nc6 {[%clk 0:02:49]} 4. Bb5 {[%clk 0:03:00]}  Bc5 {[%clk 0:02:38]} 5. O-O {[%clk 0:03:00]}  O-O {[%clk 0:02:22]} 6. Nxe5 {[%clk 0:02:59]}  Nxe5 {[%clk 0:02:20]} 7. d4 {[%clk 0:03:00]}  Bd6 {[%clk 0:02:18]} 8. f4 {[%clk 0:02:59]}  Ng6 {[%clk 0:02:09]} 9. e5 {[%clk 0:02:59]}  c6 {[%clk 0:01:43]} 10. Bd3 {[%clk 0:02:46]}  Bb4 {[%clk 0:01:43]} 11. exf6 {[%clk 0:02:38]}  Qxf6 {[%clk 0:01:42]} 12. f5 {[%clk 0:02:39]}  Bxc3 {[%clk 0:01:36]} 13. bxc3 {[%clk 0:02:37]}  Ne7 {[%clk 0:01:34]} 14. Qg4 {[%clk 0:02:32]}  d5 {[%clk 0:01:25]} 15. Bg5 {[%clk 0:02:32]}  Qd6 {[%clk 0:01:25]} 16. Bf4 {[%clk 0:02:23]}  Qa3 {[%clk 0:00:44]} 17. Bh6 {[%clk 0:02:22]}  Ng6 {[%clk 0:00:42]} 18. Bd2 {[%clk 0:01:33]}  f6 {[%clk 0:00:36]} 19. Rae1 {[%clk 0:01:31]}  Bd7 {[%clk 0:00:35]} 20. Qg3 {[%clk 0:01:24]}  Ne7 {[%clk 0:00:34]} 21. Bc1 {[%clk 0:01:22]}  Qxc3 {[%clk 0:00:31]} 22. Rxe7 {[%clk 0:01:22]}  Rf7 {[%clk 0:00:26]} 23. Rxf7 {[%clk 0:01:17]}  Kxf7 {[%clk 0:00:26]} 24. Be3 {[%clk 0:01:18]}  Re8 {[%clk 0:00:26]} 25. Bf2 {[%clk 0:01:16]}  Kg8 {[%clk 0:00:24]} 26. h3 {[%clk 0:01:12]}  Qa5 {[%clk 0:00:21]} 27. Be3 {[%clk 0:00:58]}  b5 {[%clk 0:00:20]} 28. Bh6 {[%clk 0:00:54]}  Re7 {[%clk 0:00:20]} 29. Qd6 {[%clk 0:00:53]}  Kf7 {[%clk 0:00:20]} 30. Bf4 {[%clk 0:00:50]}  Qc3 {[%clk 0:00:20]} 31. Qc5 {[%clk 0:00:48]}  Qb2 {[%clk 0:00:14]} 32. Bd6 {[%clk 0:00:45]}  Re3 {[%clk 0:00:13]} 33. Qxa7 {[%clk 0:00:45]} 1-0


[Site "https://www.chess.com"]

[Event "Titled Tuesday Blitz March 29 Early 2022"]
[White "Vestby-Ellingsen, Mads"]
[Black "Perez Ponsa, Federico"]
[WhiteFideId "1520857"]
[BlackFideId "117927"]
[WhiteElo "2232"]
[BlackElo "2672"]
[Result "0-1"]
[Round "01"]
[TimeControl "180+1"]
[Date "2022.03.29"]
[WhiteClock "0:00:01"]
[BlackClock "0:00:25"]

1. e4 {[%clk 0:02:56]}  c5 {[%clk 0:02:59]} 2. Nf3 {[%clk 0:02:55]}  d6 {[%clk 0:03:00]} 3. d4 {[%clk 0:02:54]}  cxd4 {[%clk 0:03:01]} 4. Nxd4 {[%clk 0:02:55]}  Nf6 {[%clk 0:03:01]} 5. Nc3 {[%clk 0:02:54]}  a6 {[%clk 0:03:01]} 6. Bc4 {[%clk 0:02:53]}  e6 {[%clk 0:03:01]} 7. Bb3 {[%clk 0:02:52]}  Nbd7 {[%clk 0:03:01]} 8. Be3 {[%clk 0:02:52]}  Nc5 {[%clk 0:03:01]} 9. O-O {[%clk 0:02:50]}  Be7 {[%clk 0:02:53]} 10. Qf3 {[%clk 0:02:45]}  O-O {[%clk 0:02:50]} 11. Rfd1 {[%clk 0:02:43]}  Qc7 {[%clk 0:02:49]} 12. Nde2 {[%clk 0:02:35]}  b5 {[%clk 0:02:36]} 13. Ng3 {[%clk 0:02:02]}  b4 {[%clk 0:02:30]} 14. Na4 {[%clk 0:01:57]}  Bb7 {[%clk 0:02:29]} 15. Nxc5 {[%clk 0:01:53]}  dxc5 {[%clk 0:02:30]} 16. Bc4 {[%clk 0:01:53]}  Nd7 {[%clk 0:02:24]} 17. Bf4 {[%clk 0:01:48]}  Ne5 {[%clk 0:02:23]} 18. Qe2 {[%clk 0:01:47]}  g5 {[%clk 0:02:20]} 19. Be3 {[%clk 0:01:44]}  Ng6 {[%clk 0:02:11]} 20. Qg4 {[%clk 0:01:01]}  Qe5 {[%clk 0:01:49]} 21. a3 {[%clk 0:00:34]}  Qxb2 {[%clk 0:01:34]} 22. axb4 {[%clk 0:00:31]}  cxb4 {[%clk 0:01:33]} 23. Bxg5 {[%clk 0:00:17]}  Bxg5 {[%clk 0:01:26]} 24. Qxg5 {[%clk 0:00:18]}  Qe5 {[%clk 0:01:25]} 25. Qe3 {[%clk 0:00:15]}  Rfc8 {[%clk 0:01:24]} 26. Bd3 {[%clk 0:00:07]}  a5 {[%clk 0:01:23]} 27. h3 {[%clk 0:00:04]}  a4 {[%clk 0:01:22]} 28. Ne2 {[%clk 0:00:04]}  a3 {[%clk 0:01:18]} 29. f4 {[%clk 0:00:04]}  Qc5 {[%clk 0:01:17]} 30. Qxc5 {[%clk 0:00:05]}  Rxc5 {[%clk 0:01:17]} 31. f5 {[%clk 0:00:06]}  Ne5 {[%clk 0:01:16]} 32. Nd4 {[%clk 0:00:05]}  Rd8 {[%clk 0:01:13]} 33. Nb3 {[%clk 0:00:03]}  Rc3 {[%clk 0:01:10]} 34. fxe6 {[%clk 0:00:03]}  fxe6 {[%clk 0:01:09]} 35. Na5 {[%clk 0:00:03]}  Ba8 {[%clk 0:01:04]} 36. Rdb1 {[%clk 0:00:03]}  Nxd3 {[%clk 0:00:50]} 37. cxd3 {[%clk 0:00:03]}  Rd4 {[%clk 0:00:50]} 38. Nb3 {[%clk 0:00:01]}  Rdxd3 {[%clk 0:00:49]} 39. Na5 {[%clk 0:00:02]}  Rc5 {[%clk 0:00:39]} 40. Nb3 {[%clk 0:00:01]}  Rc2 {[%clk 0:00:36]} 41. Na5 {[%clk 0:00:01]}  Bxe4 {[%clk 0:00:27]} 42. Rxb4 {[%clk 0:00:01]}  Rxg2+ {[%clk 0:00:28]} 43. Kf1 {[%clk 0:00:02]}  Bd5 {[%clk 0:00:27]} 44. Rg4+ {[%clk 0:00:01]}  Rxg4 {[%clk 0:00:26]} 45. hxg4 {[%clk 0:00:02]}  a2 {[%clk 0:00:25]} 46. Ke2 {[%clk 0:00:01]}  Ra3 {[%clk 0:00:25]} 0-1


[Site "https://www.chess.com"]

[Event "Titled Tuesday Blitz March 29 Early 2022"]
[White "Vokhidov, Shamsiddin"]
[Black "Mkrtchyan, Mariam"]
[WhiteFideId "14204223"]
[BlackFideId "13310828"]
[WhiteElo "2611"]
[BlackElo "1984"]
[Result "1-0"]
[Round "01"]
[TimeControl "180+1"]
[Date "2022.03.29"]
[WhiteClock "0:01:42"]
[BlackClock "0:00:01"]

1. e4 {[%clk 0:03:00]}  c6 {[%clk 0:02:58]} 2. d4 {[%clk 0:03:01]}  d5 {[%clk 0:02:58]} 3. exd5 {[%clk 0:03:02]}  cxd5 {[%clk 0:02:58]} 4. c4 {[%clk 0:03:02]}  Nf6 {[%clk 0:02:57]} 5. Nc3 {[%clk 0:03:03]}  g6 {[%clk 0:02:58]} 6. cxd5 {[%clk 0:03:03]}  Bg7 {[%clk 0:02:56]} 7. Bc4 {[%clk 0:03:02]}  O-O {[%clk 0:02:56]} 8. Nge2 {[%clk 0:03:03]}  Nbd7 {[%clk 0:02:56]} 9. Nf4 {[%clk 0:03:02]}  a6 {[%clk 0:02:48]} 10. a4 {[%clk 0:03:01]}  b6 {[%clk 0:02:47]} 11. O-O {[%clk 0:03:00]}  Bb7 {[%clk 0:02:47]} 12. Re1 {[%clk 0:03:00]}  Rc8 {[%clk 0:02:47]} 13. b3 {[%clk 0:03:00]}  Re8 {[%clk 0:02:41]} 14. Ba3 {[%clk 0:02:58]}  Bf8 {[%clk 0:02:37]} 15. Qd3 {[%clk 0:02:57]}  Nb8 {[%clk 0:02:21]} 16. d6 {[%clk 0:02:46]}  exd6 {[%clk 0:02:00]} 17. Nxg6 {[%clk 0:02:46]}  Rxc4 {[%clk 0:01:39]} 18. Nxf8 {[%clk 0:02:45]}  Rxc3 {[%clk 0:01:27]} 19. Qxc3 {[%clk 0:02:45]}  Rxe1+ {[%clk 0:01:16]} 20. Rxe1 {[%clk 0:02:45]}  Qxf8 {[%clk 0:01:16]} 21. Qc7 {[%clk 0:02:38]}  Qc8 {[%clk 0:01:05]} 22. Qxd6 {[%clk 0:02:36]}  Nbd7 {[%clk 0:01:02]} 23. Qg3+ {[%clk 0:02:19]}  Kh8 {[%clk 0:01:01]} 24. d5 {[%clk 0:02:19]}  Nxd5 {[%clk 0:00:49]} 25. Bb2+ {[%clk 0:02:13]}  f6 {[%clk 0:00:49]} 26. h4 {[%clk 0:02:13]}  Qg8 {[%clk 0:00:36]} 27. Qf3 {[%clk 0:02:11]}  Ba8 {[%clk 0:00:29]} 28. g3 {[%clk 0:02:09]}  a5 {[%clk 0:00:21]} 29. Qf5 {[%clk 0:02:07]}  Bc6 {[%clk 0:00:18]} 30. Re6 {[%clk 0:02:06]}  Qc8 {[%clk 0:00:09]} 31. Rd6 {[%clk 0:01:54]}  Qc7 {[%clk 0:00:07]} 32. Rxd5 {[%clk 0:01:50]}  Bxd5 {[%clk 0:00:07]} 33. Qxd5 {[%clk 0:01:51]}  Kg7 {[%clk 0:00:07]} 34. Qe6 {[%clk 0:01:50]}  Qd8 {[%clk 0:00:04]} 35. h5 {[%clk 0:01:47]}  h6 {[%clk 0:00:02]} 36. Qg4+ {[%clk 0:01:46]}  Kf7 {[%clk 0:00:01]} 37. Qg6+ {[%clk 0:01:46]}  Ke7 {[%clk 0:00:02]} 38. Qxh6 {[%clk 0:01:46]}  Qc7 {[%clk 0:00:02]} 39. Qg7+ {[%clk 0:01:44]}  Ke6 {[%clk 0:00:03]} 40. h6 {[%clk 0:01:44]}  Qc2 {[%clk 0:00:01]} 41. Qg4+ {[%clk 0:01:42]} 1-0


[Site "https://www.chess.com"]

[Event "Titled Tuesday Blitz March 29 Early 2022"]
[White "Vysochin, Spartak"]
[Black "Kiltti, Jyrki"]
[WhiteFideId "14103516"]
[BlackFideId "501204"]
[WhiteElo "2385"]
[BlackElo "2245"]
[Result "1-0"]
[Round "01"]
[TimeControl "180+1"]
[Date "2022.03.30"]
[WhiteClock "0:01:30"]
[BlackClock "0:01:34"]

1. e4 {[%clk 0:03:00]}  Nc6 {[%clk 0:03:00]} 2. Nf3 {[%clk 0:02:59]}  e5 {[%clk 0:02:59]} 3. Bb5 {[%clk 0:02:56]}  Qf6 {[%clk 0:02:59]} 4. Nc3 {[%clk 0:02:49]}  Nge7 {[%clk 0:02:58]} 5. O-O {[%clk 0:02:44]}  g5 {[%clk 0:02:56]} 6. d4 {[%clk 0:02:37]}  g4 {[%clk 0:02:53]} 7. Nxe5 {[%clk 0:02:23]}  Nxe5 {[%clk 0:02:46]} 8. dxe5 {[%clk 0:02:22]}  Qxe5 {[%clk 0:02:46]} 9. Be3 {[%clk 0:02:21]}  Rg8 {[%clk 0:02:39]} 10. f4 {[%clk 0:01:59]}  gxf3 {[%clk 0:02:23]} 11. Qxf3 {[%clk 0:01:58]}  Qg7 {[%clk 0:02:23]} 12. Bc4 {[%clk 0:01:49]}  d5 {[%clk 0:02:17]} 13. Nxd5 {[%clk 0:01:48]}  Nxd5 {[%clk 0:02:12]} 14. Bxd5 {[%clk 0:01:47]}  Be6 {[%clk 0:02:02]} 15. Bxb7 {[%clk 0:01:45]}  Bg4 {[%clk 0:01:45]} 16. Bc6+ {[%clk 0:01:42]}  Ke7 {[%clk 0:01:39]} 17. Bc5+ {[%clk 0:01:37]}  Ke6 {[%clk 0:01:38]} 18. Qb3+ {[%clk 0:01:31]}  Ke5 {[%clk 0:01:34]} 19. Qd5# {[%clk 0:01:30]} 1-0


[Site "https://www.chess.com"]